bitfinex-derivatives/quotes_SOLF0:USTF0_20251020
["timestamp","ask_amount","ask_price","bid_price","bid_amount"]
[1760982336232,4.51107907,186.23,186.17,2.73]
[1760982336929,4.51107907,186.23,186.17,7.5631]
[1760982337131,4.51107907,186.23,186.18,2.73]
[1760982337532,4.51107907,186.24,186.21,2.73]
[1760982337731,4.51107907,186.26,186.21,2.73]
[1760982337931,4.51107907,186.25,186.21,2.73]
[1760982338133,4.51107907,186.27,186.21,2.73]
[1760982338338,4.51107907,186.26,186.21,2.73]
[1760982338534,4.51107907,186.27,186.21,2.73]
[1760982338732,4.51107907,186.26,186.21,7.562]
[1760982338935,4.51107907,186.27,186.22,2.73]
[1760982339129,4.51107907,186.28,186.22,2.73]
[1760982339331,4.51107907,186.3,186.22,4.8318]
[1760982339632,4.51107907,186.29,186.23,2.73]
[1760982339837,4.51107907,186.3,186.23,2.73]
[1760982340132,4.51107907,186.3,186.26,4.8307]
[1760982340337,4.51107907,186.31,186.27,2.73]
[1760982340539,4.51107907,186.32,186.27,2.73]
[1760982340731,4.51107907,186.31,186.27,2.73]
[1760982340936,4.51107907,186.32,186.27,2.73]
[1760982341133,4.51107907,186.31,186.27,2.73]
[1760982341336,4.51107907,186.32,186.27,2.73]
[1760982341734,4.51107907,186.32,186.26,4.8307]
[1760982341735,4.51107907,186.32,186.24,4.8313]
[1760982342033,4.51107907,186.32,186.25,2.73]
[1760982342428,4.94031028,186.34,186.25,2.73]
[1760982342636,4.51107907,186.33,186.25,2.73]
[1760982342834,4.51107907,186.33,186.27,2.73]
[1760982343229,9.45138935,186.34,186.27,2.73]
[1760982343446,4.51107907,186.33,186.28,2.73]
[1760982343642,4.94031028,186.35,186.28,2.73]
[1760982343834,9.45138935,186.35,186.15,6.69358982]
[1760982344036,4.51107907,186.34,186.22,2.73]
[1760982344242,4.94031028,186.35,186.22,2.73]
[1760982344433,14.28008935,186.35,186.26,2.73]
[1760982344633,4.51107907,186.34,186.26,2.73]
[1760982345642,4.94031028,186.35,186.26,2.73]
[1760982345842,9.45138935,186.35,186.26,2.73]
[1760982346041,4.51107907,186.34,186.26,2.73]
[1760982346241,4.94031028,186.35,186.26,2.73]
[1760982346944,4.8293,186.33,186.26,2.73]
[1760982349848,4.8295,186.32,186.26,2.73]
[1760982350043,4.8295,186.32,186.21,4.8321]
[1760982350044,4.48431172,186.33,186.21,2.73]
[1760982350249,9.7272035,186.35,186.21,2.73]
[1760982350739,14.66751378,186.35,186.21,2.73]
[1760982350941,4.48431172,186.34,186.21,2.73]
[1760982353051,4.8302,186.29,186.21,2.73]
[1760982353942,4.8305,186.28,186.21,2.73]
[1760982356059,4.8308,186.27,186.21,2.73]
[1760982358165,4.831,186.26,186.21,2.73]
[1760982360961,4.48256206,186.34,186.21,2.73]
[1760982361171,4.48256206,186.35,186.21,2.73]
[1760982362675,4.48256206,186.37,186.21,2.73]
[1760982363370,4.48256206,186.37,186.24,2.85]
[1760982364063,9.42287234,186.37,186.24,2.85]
[1760982364266,4.48256206,186.36,186.24,2.85]
[1760982364462,4.8295,186.32,186.24,2.85]
[1760982364662,4.48256206,186.37,186.24,2.85]
[1760982364866,4.48256206,186.36,186.24,2.85]
[1760982365967,4.8294,186.32,186.24,7.6813]
[1760982366167,4.48256206,186.36,186.25,2.85]
[1760982366370,9.42287234,186.39,186.25,2.85]
[1760982366570,4.48256206,186.38,186.25,2.85]
[1760982366872,4.8284,186.36,186.28,2.85]
[1760982368263,4.48256206,186.38,186.28,2.85]
[1760982369569,4.8284,186.36,186.28,7.6802]
[1760982369778,4.48256206,186.38,186.29,2.85]
[1760982369976,4.48256206,186.39,186.29,2.85]
[1760982370178,4.8281,186.37,186.29,2.85]
[1760982370377,4.48256206,186.39,186.29,2.85]
[1760982370571,4.48256206,186.38,186.29,2.85]
[1760982370769,4.8284,186.36,186.29,2.85]
[1760982371373,4.8279,186.38,186.29,2.85]
[1760982371574,9.31046206,186.38,186.29,2.85]
[1760982371779,4.48256206,186.38,186.29,2.85]
[1760982373078,4.8282,186.37,186.29,7.68]
[1760982373275,4.8282,186.37,186.3,2.85]
[1760982373476,4.8276,186.39,186.3,2.85]
[1760982374376,4.8276,186.39,186.31,2.89]
[1760982374775,4.48256206,186.4,186.31,2.89]
[1760982374976,9.30966206,186.41,186.31,2.89]
[1760982375576,9.30966206,186.41,186.24,13.50162418]
[1760982375577,9.30966206,186.41,186.32,4.8292]
[1760982375878,9.30966206,186.41,186.33,2.89]
[1760982376071,4.8275,186.4,186.33,2.89]
[1760982376274,9.42287234,186.42,186.33,2.89]
[1760982376476,4.48256206,186.41,186.33,2.89]
[1760982376675,4.48256206,186.42,186.33,2.89]
[1760982377182,4.48256206,186.42,186.33,7.7189]
[1760982377381,4.48256206,186.42,186.34,2.89]
[1760982377982,4.94031028,186.43,186.34,2.89]
[1760982378182,4.48256206,186.42,186.34,2.89]
[1760982378683,4.48256206,186.43,186.34,2.89]
[1760982379080,4.48256206,186.46,186.34,2.89]
[1760982379278,9.42287234,186.47,186.34,2.89]
[1760982379474,4.48256206,186.47,186.35,2.89]
[1760982379678,4.48256206,186.49,186.35,2.89]
[1760982379880,4.48256206,186.5,186.35,2.89]
[1760982380185,14.24747234,186.51,186.4,2.89]
[1760982380384,4.48256206,186.5,186.4,2.89]
[1760982380581,4.48256206,186.51,186.4,2.89]
[1760982380889,4.48256206,186.51,186.41,2.89]
[1760982381078,9.30676206,186.52,186.41,2.89]
[1760982381381,9.30676206,186.52,186.34,8.50500434]
[1760982381382,4.48256206,186.52,186.45,2.89]
[1760982381581,4.48256206,186.53,186.45,2.89]
[1760982381982,9.30666206,186.53,186.45,2.89]
[1760982382384,4.48256206,186.53,186.45,2.89]
[1760982382980,4.94031028,186.55,186.45,2.89]
[1760982383192,4.8246,186.51,186.45,2.89]
[1760982383591,4.94031028,186.54,186.45,2.89]
[1760982383776,4.8248,186.5,186.41,2.89]
[1760982385780,13.44531462,186.54,186.34,40.78]
[1760982385781,13.44531462,186.54,186.37,2.89]
[1760982385990,4.94031028,186.53,186.39,2.89]
[1760982386185,4.94031028,186.53,186.4,5.01290342]
[1760982386387,49.18031028,186.53,186.4,5.01290342]
[1760982387388,44.24,186.53,186.4,5.01290342]
[1760982387587,4.94031028,186.55,186.42,2.68]
[1760982388883,4.8242,186.52,186.43,2.68]
[1760982390787,4.8246,186.51,186.43,2.68]
[1760982392688,4.8248,186.5,186.43,2.68]
[1760982393390,4.8251,186.49,186.43,2.68]
[1760982397885,4.8242,186.52,186.43,2.68]
[1760982398489,4.8242,186.52,186.43,4.8262]
[1760982398690,4.8242,186.52,186.44,2.68]
[1760982399787,4.8237,186.54,186.45,2.68]
[1760982400495,4.824,186.53,186.45,2.68]
[1760982401098,4.8243,186.52,186.45,2.68]
[1760982401291,4.8243,186.52,186.43,2.68]
[1760982401996,4.8246,186.51,186.43,2.68]
[1760982402495,4.94031028,186.55,186.4,4.8272]
[1760982402696,4.94031028,186.55,186.39,2.68]
[1760982402999,4.8256,186.47,186.39,2.68]
[1760982403296,4.8256,186.47,186.4,5.00531016]
[1760982403593,4.8248,186.5,186.39,2.68]
[1760982403788,13.44531462,186.56,186.41,2.68]
[1760982403986,8.50500434,186.52,186.37,2.68]
[1760982404188,8.50500434,186.52,186.38,5.0059576]
[1760982404389,8.50500434,186.52,186.39,7.6859576]
[1760982404691,8.50500434,186.52,186.4,7.6859576]
[1760982404896,4.94031028,186.54,186.41,5.00752723]
[1760982405097,4.94031028,186.54,186.3,13.02]
[1760982405098,16.10014384,186.59,186.43,2.68]
[1760982405290,35.08,186.59,186.45,2.68]
[1760982405490,35.08,186.59,186.46,7.68752723]
[1760982405691,35.08,186.59,186.46,2.68]
[1760982405892,4.824,186.53,186.46,2.68]
[1760982407496,4.8234,186.55,186.46,2.68]
[1760982407698,51.03758465,186.59,186.46,2.68]
[1760982408400,4.824,186.53,186.46,2.68]
[1760982409202,4.824,186.53,186.47,5.00796783]
[1760982409402,4.824,186.53,186.46,2.68]
[1760982409602,4.824,186.53,186.47,5.00796783]
[1760982409796,4.824,186.53,186.46,2.68]
[1760982409996,4.824,186.53,186.47,5.0078847]
[1760982410196,4.8243,186.52,186.46,2.68]
[1760982410397,4.8243,186.52,186.47,7.68895576]
[1760982410598,51.03758465,186.59,186.47,2.68]
[1760982410803,4.8245,186.51,186.41,2.68]
[1760982410995,4.8245,186.51,186.43,2.68]
[1760982411195,4.8245,186.51,186.44,7.68904173]
[1760982411401,4.8245,186.51,186.45,5.00904173]
[1760982411594,4.8245,186.51,186.46,7.68904173]
[1760982411791,4.8245,186.51,186.47,7.68904173]
[1760982411994,4.8245,186.51,186.47,2.68]
[1760982412805,4.8245,186.51,186.41,2.68]
[1760982413104,4.8245,186.51,186.4,4.8272]
[1760982413105,4.8245,186.51,186.43,2.68]
[1760982413304,4.8245,186.51,186.44,7.69159434]
[1760982413493,4.8245,186.51,186.45,5.01159434]
[1760982413697,4.8245,186.51,186.46,5.01159434]
[1760982413898,4.8245,186.51,186.47,5.01159434]
[1760982414208,4.8245,186.51,186.45,2.68]
[1760982414404,4.8245,186.51,186.47,2.93]
[1760982416695,4.824,186.53,186.47,2.93]
[1760982419310,45.28,186.58,186.47,2.93]
[1760982419505,74.9202,186.83,186.47,2.93]
[1760982419506,4.94031028,186.63,186.47,2.93]
[1760982419710,4.94031028,186.63,186.44,13.50162418]
[1760982419711,4.94031028,186.66,186.51,2.76]
[1760982419908,8.50500434,186.63,186.51,2.76]
[1760982420106,24.78849589,186.63,186.51,2.76]
[1760982420303,8.50500434,186.63,186.51,2.76]
[1760982421011,4.8227,186.58,186.51,2.76]
[1760982421604,8.50500434,186.63,186.51,2.76]
[1760982422121,24.79653077,186.63,186.51,2.76]
[1760982422915,45.28,186.62,186.51,2.76]
[1760982423519,4.8222,186.6,186.51,2.76]
[1760982424814,4.8222,186.6,186.51,7.5843]
[1760982425026,4.8222,186.6,186.52,2.76]
[1760982426620,4.8222,186.6,186.53,2.76]
[1760982427415,6.58708037,186.71,186.55,2.76]
[1760982427416,4.94031028,186.69,186.55,2.76]
[1760982427618,4.94031028,186.7,186.55,2.76]
[1760982428324,58.70531462,186.71,186.55,2.76]
[1760982429416,74.59792637,186.71,186.55,2.76]
[1760982429718,4.8218,186.61,186.55,2.76]
[1760982430718,4.8213,186.63,186.55,2.76]
[1760982431818,4.8216,186.62,186.55,2.76]
[1760982432117,4.8219,186.61,186.55,2.76]
[1760982433823,4.8213,186.63,186.55,2.76]
[1760982434329,4.8216,186.62,186.56,2.76]
[1760982438826,4.8203,186.67,186.59,2.86]
[1760982439327,16.32453381,186.73,186.59,2.86]
[1760982439525,14.85753948,186.74,186.59,2.86]
[1760982440528,5.22023948,186.74,186.62,2.86]
[1760982441034,4.8195,186.7,186.62,2.86]
[1760982441228,4.8195,186.7,186.63,2.86]
[1760982441428,5.22023948,186.74,186.63,2.86]
[1760982441631,138.94,186.8,186.63,2.86]
[1760982441632,5.22023948,186.78,186.63,2.86]
[1760982441826,4.8189,186.73,186.63,2.86]
[1760982442030,5.22023948,186.78,186.65,2.86]
[1760982443229,45.22,186.79,186.65,2.86]
[1760982443428,5.22023948,186.76,186.65,2.86]
[1760982444035,4.8193,186.71,186.65,2.86]
[1760982444233,5.22023948,186.76,186.65,2.86]
[1760982444539,5.22023948,186.76,186.62,2.86]
[1760982445037,4.8198,186.69,186.62,2.86]
[1760982446240,4.8201,186.68,186.62,2.86]
[1760982446936,4.8195,186.7,186.62,2.86]
[1760982447135,5.22023948,186.76,186.62,2.86]
[1760982450842,4.8201,186.68,186.62,2.86]
[1760982451141,9.6363,186.75,186.62,2.86]
[1760982451344,4.8203,186.67,186.62,2.86]
[1760982451539,5.22023948,186.72,186.62,2.86]
[1760982452945,4.8205,186.66,186.62,2.86]
[1760982453244,5.22023948,186.72,186.62,2.86]
[1760982453932,4.8209,186.65,186.62,2.86]
[1760982454948,4.8211,186.64,186.62,2.86]
[1760982456443,5.22023948,186.68,186.58,2.94]
[1760982457340,5.22023948,186.68,186.53,2.94]
[1760982457846,5.22023948,186.64,186.53,2.94]
[1760982459145,4.8225,186.59,186.53,2.94]
[1760982459346,5.22023948,186.64,186.53,2.94]
[1760982460642,4.823,186.57,186.53,2.94]
[1760982460842,5.22023948,186.64,186.53,2.94]
[1760982461042,5.22023948,186.6,186.53,2.94]
[1760982462150,4.8235,186.55,186.53,2.94]
[1760982462853,9.6398,186.69,186.53,2.94]
[1760982463144,9.6398,186.69,186.54,2.94]
[1760982463145,5.22023948,186.67,186.54,2.94]
[1760982463347,4.8215,186.62,186.54,2.94]
[1760982463551,4.8215,186.62,186.55,2.94]
[1760982465156,4.821,186.64,186.55,4.98509536]
[1760982465456,4.8202,186.68,186.58,2.94]
[1760982465650,5.22023948,186.73,186.58,2.94]
[1760982466055,5.22023948,186.73,186.59,4.8221]
[1760982466249,5.22023948,186.73,186.6,2.94]
[1760982466655,4.8201,186.68,186.6,7.7619]
[1760982466952,4.8201,186.68,186.61,2.94]
[1760982468059,4.8195,186.7,186.62,2.94]
[1760982469961,4.8195,186.7,186.63,4.8211]
[1760982470151,4.8195,186.7,186.64,2.94]
[1760982470354,4.8189,186.72,186.64,2.94]
[1760982471960,4.8189,186.72,186.66,2.94]
[1760982473764,4.8184,186.74,186.66,2.94]
[1760982474360,4.8184,186.74,186.68,2.94]
[1760982474558,4.818,186.76,186.68,2.94]
[1760982476465,4.91866345,186.81,186.69,2.94]
[1760982476760,4.91866345,186.83,186.69,2.94]
[1760982476962,4.91866345,186.83,186.65,4.99092451]
[1760982476963,4.818,186.76,186.67,4.82]
[1760982477166,4.91866345,186.81,186.68,2.94]
[1760982477560,4.91866345,186.82,186.68,2.94]
[1760982477762,4.817,186.8,186.71,2.84]
[1760982479060,4.817,186.8,186.72,2.84]
[1760982479366,4.91866345,186.85,186.72,2.84]
[1760982479864,9.73446345,186.85,186.76,4.8177]
[1760982480069,9.73446345,186.85,186.77,2.84]
[1760982481268,4.91866345,186.85,186.77,2.84]
[1760982482265,4.91866345,186.86,186.77,2.84]
[1760982482465,4.91866345,186.87,186.78,2.84]
[1760982482671,4.91866345,186.88,186.78,2.84]
[1760982482971,4.91866345,186.93,186.82,5.22023948]
[1760982483172,4.91866345,186.95,186.83,2.84]
[1760982483369,4.91866345,186.96,186.83,2.84]
[1760982483675,4.91866345,186.96,186.88,2.84]
[1760982484271,4.91866345,186.97,186.88,2.84]
[1760982485262,4.91866345,186.98,186.88,2.84]
[1760982485457,4.91866345,186.98,186.87,2.84]
[1760982485674,4.8112,187.02,186.9,2.84]
[1760982485965,4.91866345,187.05,186.91,8.08317778]
[1760982486269,4.8119,187.0,186.92,8.08317778]
[1760982486568,5.22023948,187.03,186.92,2.84]
[1760982487162,4.91866345,187.07,186.92,2.84]
[1760982487163,5.22023948,187.07,186.92,2.84]
[1760982487575,4.8111,187.03,186.92,2.84]
[1760982487766,5.22023948,187.07,186.92,2.84]
[1760982488165,4.8106,187.04,186.93,5.21825299]
[1760982488370,4.8106,187.04,186.94,2.84]
[1760982488964,4.8112,187.02,186.94,2.84]
[1760982489569,4.8116,187.01,186.94,2.84]
[1760982490161,5.22023948,187.07,186.94,2.84]
[1760982491065,4.8113,187.02,186.94,2.84]
[1760982492278,4.8116,187.01,186.94,2.84]
[1760982492980,5.22023948,187.07,186.94,2.84]
[1760982493569,4.8113,187.02,186.94,2.84]
[1760982494970,4.8113,187.02,186.96,2.85]
[1760982496782,4.8116,187.01,186.96,2.85]
[1760982497082,9.6176,187.11,186.96,2.85]
[1760982497279,4.8117,187.01,186.88,2.85]
[1760982497478,4.8117,187.01,186.9,2.85]
[1760982497671,15.8779654,187.09,186.92,2.85]
[1760982497886,4.91866345,187.21,186.94,2.85]
[1760982498081,4.85524721,187.24,186.95,143.80968524]
[1760982498272,6.53010436,187.36,187.19,8.44589649]
[1760982498481,13.06020872,187.42,187.25,2.85]
[1760982498672,6.53010436,187.5,187.3,2.85]
[1760982498876,6.53010436,187.5,187.35,2.85]
[1760982498877,15.89283072,187.5,187.35,2.85]
[1760982499474,15.89283072,187.5,187.4,2.85]
[1760982499677,138.62,187.61,187.42,2.85]
[1760982499977,138.62,187.61,187.44,2.85]
[1760982500179,138.62,187.61,187.46,2.85]
[1760982500381,24.13735644,187.67,187.46,2.85]
[1760982500576,46.16,187.66,187.46,2.85]
[1760982500775,54.60589649,187.65,187.46,2.85]
[1760982500974,4.7965,187.6,187.46,2.85]
[1760982501183,8.44589649,187.6,187.38,2.85]
[1760982501377,15.68589649,187.6,187.4,2.85]
[1760982501581,4.7975,187.56,187.41,5.10731058]
[1760982502075,4.7975,187.56,187.4,2.85]
[1760982502679,74.5204,187.83,187.42,2.85]
[1760982502880,8.44589649,187.69,187.44,2.85]
[1760982503084,8.44589649,187.69,187.4,8.44589649]
[1760982503085,4.795,187.66,187.46,2.85]
[1760982503285,7.24,187.7,187.46,2.85]
[1760982503788,8.44589649,187.71,187.43,8.44589649]
[1760982503789,13.44,187.71,187.47,2.85]
[1760982503991,21.88589649,187.71,187.47,2.85]
[1760982504380,4.7948,187.67,187.47,2.85]
[1760982504581,154.22705947,187.79,187.47,2.85]
[1760982504582,8.44589649,187.74,187.47,2.85]
[1760982504975,4.7937,187.71,187.49,2.85]
[1760982505176,7.22,187.75,187.5,2.85]
[1760982505480,138.56,187.79,187.55,2.85]
[1760982505679,8.44589649,187.81,187.55,2.85]
[1760982505877,54.60589649,187.81,187.55,2.85]
[1760982506078,46.14,187.8,187.55,2.85]
[1760982506275,8.44589649,187.89,187.62,2.85]
[1760982506484,8.44589649,187.86,187.62,2.85]
[1760982506889,4.7909,187.82,187.62,2.85]
[1760982507086,8.44589649,187.86,187.62,2.85]
[1760982507281,8.44589649,187.88,187.62,2.85]
[1760982507487,4.7907,187.82,187.62,2.85]
[1760982507687,8.44589649,187.83,187.62,2.85]
[1760982507887,4.7917,187.79,187.62,2.85]
[1760982509887,74.4198,188.09,187.71,8.44589649]
[1760982510094,8.44589649,188.01,187.77,2.83]
[1760982510390,46.04,188.08,187.77,2.83]
[1760982510391,8.44589649,187.96,187.77,2.83]
[1760982510686,4.7883,187.92,187.77,2.83]
[1760982510888,8.44589649,187.91,187.77,2.83]
[1760982511292,8.44589649,187.86,187.62,2.83]
[1760982511496,8.44589649,187.81,187.62,2.83]
[1760982511686,4.7919,187.78,187.62,2.83]
[1760982512287,8.44589649,187.76,187.62,2.83]
[1760982512687,4.7926,187.75,187.62,2.83]
[1760982513691,138.2,187.87,187.62,2.83]
[1760982513898,138.2,187.87,187.67,2.83]
[1760982515198,8.44589649,187.84,187.67,2.83]
[1760982515396,4.7911,187.81,187.67,2.83]
[1760982516492,4.7918,187.78,187.67,2.83]
[1760982517612,8.44589649,187.84,187.46,8.44589649]
[1760982517613,74.4019,188.13,187.74,2.83]
[1760982517901,8.44589649,187.95,187.74,2.83]
[1760982518099,47.56,187.94,187.74,2.83]
[1760982518401,8.44589649,187.9,187.74,2.83]
[1760982518899,47.54,187.89,187.74,2.83]
[1760982519107,47.54,187.89,187.64,2.83]
[1760982519108,4.7907,187.83,187.64,2.83]
[1760982519396,26.72,187.85,187.66,2.83]
[1760982519599,8.44589649,187.92,187.66,2.83]
[1760982519799,4.7897,187.87,187.67,2.83]
[1760982520390,18.96,187.86,187.67,2.83]
[1760982520592,4.7901,187.85,187.67,2.83]
[1760982521000,9.5678,188.1,187.7,8.44589649]
[1760982521195,8.44589649,188.01,187.75,2.83]
[1760982521592,4.7877,187.95,187.76,2.83]
[1760982521813,7.76,188.0,187.76,2.83]
[1760982522305,8.44589649,188.01,187.76,2.83]
[1760982522499,14.88,188.0,187.76,2.83]
[1760982523102,83.9846,188.1,187.74,8.44589649]
[1760982523103,74.326,188.33,187.88,2.83]
[1760982523404,8.44589649,188.18,187.88,2.83]
[1760982523602,48.34,188.17,187.93,2.83]
[1760982523801,8.44589649,188.13,187.93,2.83]
[1760982524812,48.34,188.17,187.93,2.83]
[1760982525001,74.2958,188.4,187.94,2.83]
[1760982525200,8.44589649,188.25,188.0,2.83]
[1760982525507,4.782,188.17,188.0,2.83]
[1760982527300,4.7825,188.15,188.0,2.83]
[1760982527494,9.5565,188.32,187.92,8.44589649]
[1760982527495,8.44589649,188.33,188.07,2.83]
[1760982527700,9.5514,188.42,188.07,2.83]
[1760982527906,4.7787,188.3,188.07,2.83]
[1760982528300,8.44589649,188.66,188.3,2.83]
[1760982528500,8.44589649,188.66,188.17,32.2]
[1760982528501,8.44589649,188.69,188.39,2.83]
[1760982528699,38.08589649,188.69,188.39,2.83]
[1760982528897,38.08589649,188.69,188.27,8.44589649]
[1760982528898,8.44589649,188.59,188.27,8.44589649]
[1760982529094,8.44589649,188.54,188.33,2.83]
[1760982529304,4.7751,188.44,188.27,2.83]
[1760982529505,8.44589649,188.48,188.17,8.44589649]
[1760982529708,20.92,188.47,188.18,4.57477029]
[1760982529907,4.7764,188.39,188.19,4.57477029]
[1760982530111,4.7764,188.39,188.14,8.44589649]
[1760982530112,4.7764,188.39,188.2,4.57477029]
[1760982530314,4.7764,188.39,188.14,8.44589649]
[1760982530607,38.04589649,188.46,188.15,4.57486523]
[1760982530808,8.44589649,188.41,188.16,4.57486523]
[1760982531011,8.44589649,188.36,188.09,8.44589649]
[1760982531207,8.44589649,188.33,188.1,4.57437401]
[1760982531406,8.44589649,188.28,188.04,2.83]
[1760982531601,34.86,188.27,188.06,2.83]
[1760982531801,34.86,188.27,188.08,2.83]
[1760982532306,4.78,188.25,188.08,2.83]
[1760982532708,34.08,188.26,188.08,2.83]
[1760982532914,4.7807,188.22,188.08,2.83]
[1760982534616,50.66,188.27,188.08,2.83]
[1760982535316,4.7812,188.2,188.08,2.83]
[1760982535912,4.7802,188.24,188.08,2.83]
[1760982536818,4.7809,188.21,188.08,2.83]
[1760982537114,4.7809,188.21,188.09,4.60275401]
[1760982537319,4.7817,188.18,188.08,2.83]
[1760982537514,48.82589649,188.28,188.08,2.83]
[1760982538015,4.7814,188.19,188.08,2.83]
[1760982539007,4.7802,188.24,188.1,2.76]
[1760982539218,4.7802,188.24,188.11,7.3736938]
[1760982539512,4.7802,188.24,187.89,154.0]
[1760982539513,50.56,188.24,188.01,2.76]
[1760982539718,8.44589649,188.23,188.03,2.76]
[1760982539903,8.44589649,188.23,188.04,4.62613005]
[1760982540104,8.44589649,188.23,188.05,7.38613005]
[1760982540306,8.44589649,188.23,188.06,4.62613005]
[1760982540720,8.44589649,188.23,188.05,2.76]
[1760982540721,8.44589649,188.23,188.07,4.62613005]
[1760982540905,8.44589649,188.13,187.98,2.76]
[1760982541216,4.7841,188.09,187.98,2.76]
[1760982541411,8.44589649,188.08,187.9,2.76]
[1760982542208,4.786,188.01,187.9,2.76]
[1760982542405,8.44589649,188.03,187.9,2.76]
[1760982542920,4.7872,187.97,187.84,2.76]
[1760982543415,8.44589649,188.06,187.84,2.76]
[1760982543622,19.62,188.08,187.84,2.76]
[1760982543815,8.44589649,188.05,187.84,2.76]
[1760982544121,4.7855,188.03,187.84,2.76]
[1760982544309,8.44589649,188.05,187.86,2.76]
[1760982544511,8.44589649,188.1,187.88,2.76]
[1760982544915,4.7853,188.04,187.88,2.76]
[1760982545125,4.7853,188.04,187.89,4.16461087]
[1760982545312,4.7853,188.04,187.9,2.76]
[1760982545826,8.44589649,188.05,187.9,2.76]
[1760982546322,8.44589649,188.05,187.84,2.76]
[1760982546517,40.32,188.11,187.84,2.76]
[1760982546518,8.44589649,188.0,187.84,2.76]
[1760982547220,4.7873,187.96,187.85,4.18117975]
[1760982547527,4.7873,187.96,187.84,2.76]
[1760982547826,4.7873,187.96,187.85,4.18108948]
[1760982548026,4.7873,187.96,187.86,4.18108948]
[1760982548227,4.7873,187.96,187.81,4.68618166]
[1760982548422,4.7873,187.96,187.83,2.76]
[1760982548723,4.7873,187.96,187.84,4.18862651]
[1760982548927,4.7873,187.96,187.85,9.28416256]
[1760982549110,8.44589649,187.99,187.86,9.29661292]
[1760982549111,4.7879,187.94,187.86,9.29661292]
[1760982549315,4.7879,187.94,187.83,2.76]
[1760982549521,4.7879,187.94,187.84,9.30052189]
[1760982549821,4.7884,187.92,187.85,9.30052189]
[1760982550017,4.7884,187.92,187.83,2.76]
[1760982550219,4.7884,187.92,187.84,9.30631132]
[1760982550416,4.7875,187.95,187.85,9.30631132]
[1760982550610,4.7875,187.95,187.83,2.76]
[1760982550611,4.7875,187.95,187.86,9.30631132]
[1760982550916,4.7875,187.95,187.87,9.30631132]
[1760982551117,4.7881,187.93,187.83,2.76]
[1760982551321,4.7881,187.93,187.84,9.32309828]
[1760982551524,4.7881,187.93,187.85,9.32309828]
[1760982551825,4.7886,187.91,187.86,9.32309828]
[1760982552025,4.7886,187.91,187.81,4.68618166]
[1760982552225,4.7886,187.91,187.82,9.32945302]
[1760982552427,4.7886,187.91,187.83,9.32945302]
[1760982552731,4.787,187.97,187.84,9.32945302]
[1760982553024,50.2,188.01,187.85,13.80563019]
[1760982553229,50.2,188.01,187.86,13.80563019]
[1760982553420,50.2,188.01,187.87,13.80563019]
[1760982553622,4.7875,187.95,187.88,13.80563019]
[1760982553818,50.2,188.01,187.89,4.47617717]
[1760982554121,50.2,188.01,187.9,7.717e-05]
[1760982554422,8.44589649,188.02,187.83,4.68618166]
[1760982554624,50.12,188.01,187.84,9.3480773]
[1760982554821,50.12,188.01,187.85,9.3480773]
[1760982555017,4.7883,187.92,187.86,9.3480773]
[1760982555319,50.12,188.01,187.87,9.3480773]
[1760982555621,4.7888,187.9,187.88,0.8745773]
[1760982555820,8.44589649,187.97,187.82,4.68618166]